[Event "January 9 Early 2024"]
[Site "https://www.chess.com"]
[Date "2024.01.11"]
[Round "6"]
[White "Gabrielian, Artur"]
[Black "Radzhabov, Rodion"]
[Result "0-1"]
[Board "214"]
[TimeControl "180+1"]
[WhiteFideId "4131002"]
[BlackFideId "884715"]
[WhiteElo "2791"]
[BlackElo "2608"]
[WhiteTeam "RUS"]
[BlackTeam "RUS"]
[WhiteClock "0:00:01"]
[BlackClock "0:00:12"]

1. e4 {[%clk 0:02:57]}  c5 {[%clk 0:03:00]} 2. Nf3 {[%clk 0:02:55]}  e6 {[%clk 0:02:59]} 3. Nc3 {[%clk 0:02:53]}  Nc6 {[%clk 0:02:58]} 4. h3 {[%clk 0:02:52]}  a6 {[%clk 0:02:48]} 5. d4 {[%clk 0:02:51]}  cxd4 {[%clk 0:02:47]} 6. Nxd4 {[%clk 0:02:51]}  Qc7 {[%clk 0:02:48]} 7. Nxc6 {[%clk 0:02:50]}  bxc6 {[%clk 0:02:47]} 8. Bd3 {[%clk 0:02:50]}  d5 {[%clk 0:02:47]} 9. O-O {[%clk 0:02:50]}  Nf6 {[%clk 0:02:47]} 10. Qf3 {[%clk 0:02:48]}  Bd6 {[%clk 0:02:43]} 11. Re1 {[%clk 0:02:48]}  O-O {[%clk 0:02:39]} 12. Bg5 {[%clk 0:02:46]}  Be5 {[%clk 0:02:39]} 13. Rad1 {[%clk 0:02:45]}  h6 {[%clk 0:02:36]} 14. Bc1 {[%clk 0:02:43]}  Bb7 {[%clk 0:02:30]} 15. exd5 {[%clk 0:02:35]}  cxd5 {[%clk 0:02:26]} 16. Rxe5 {[%clk 0:02:27]}  Qxe5 {[%clk 0:02:20]} 17. Bf4 {[%clk 0:02:27]}  Qh5 {[%clk 0:02:17]} 18. g4 {[%clk 0:02:21]}  Qh4 {[%clk 0:02:17]} 19. Kh2 {[%clk 0:02:08]}  d4 {[%clk 0:02:10]} 20. Qxb7 {[%clk 0:00:56]}  Qxf2+ {[%clk 0:02:09]} 21. Kh1 {[%clk 0:00:56]}  dxc3 {[%clk 0:01:52]} 22. Rf1 {[%clk 0:00:53]}  Qd4 {[%clk 0:01:46]} 23. bxc3 {[%clk 0:00:50]}  Qd5+ {[%clk 0:01:38]} 24. Qxd5 {[%clk 0:00:50]}  Nxd5 {[%clk 0:01:39]} 25. Bd2 {[%clk 0:00:50]}  Rfc8 {[%clk 0:01:37]} 26. c4 {[%clk 0:00:48]}  Nb6 {[%clk 0:01:36]} 27. Be4 {[%clk 0:00:47]}  Nxc4 {[%clk 0:01:14]} 28. Bxa8 {[%clk 0:00:47]}  Nxd2 {[%clk 0:01:14]} 29. Rd1 {[%clk 0:00:41]}  Rxc2 {[%clk 0:01:09]} 30. a4 {[%clk 0:00:35]}  a5 {[%clk 0:01:04]} 31. Kg2 {[%clk 0:00:25]}  g5 {[%clk 0:01:00]} 32. Kf2 {[%clk 0:00:23]}  Nc4+ {[%clk 0:00:56]} 33. Kf3 {[%clk 0:00:22]}  Nb6 {[%clk 0:00:52]} 34. Be4 {[%clk 0:00:16]}  Rc3+ {[%clk 0:00:51]} 35. Kg2 {[%clk 0:00:16]}  Nxa4 {[%clk 0:00:50]} 36. Rd8+ {[%clk 0:00:12]}  Kg7 {[%clk 0:00:50]} 37. Ra8 {[%clk 0:00:12]}  Nc5 {[%clk 0:00:50]} 38. Bc6 {[%clk 0:00:12]}  a4 {[%clk 0:00:46]} 39. Ra7 {[%clk 0:00:12]}  Kf8 {[%clk 0:00:33]} 40. Bb5 {[%clk 0:00:08]}  a3 {[%clk 0:00:31]} 41. Ra8+ {[%clk 0:00:08]}  Ke7 {[%clk 0:00:30]} 42. Ra7+ {[%clk 0:00:08]}  Kd6 {[%clk 0:00:24]} 43. Rxf7 {[%clk 0:00:08]}  a2 {[%clk 0:00:21]} 44. Ra7 {[%clk 0:00:08]}  Rc2+ {[%clk 0:00:21]} 45. Kf3 {[%clk 0:00:08]}  Nb3 {[%clk 0:00:20]} 46. Ra6+ {[%clk 0:00:03]}  Ke5 {[%clk 0:00:13]} 47. Bd7 {[%clk 0:00:01]}  a1=Q {[%clk 0:00:12]} 0-1

[Event "January 9 Early 2024"]
[Site "https://www.chess.com"]
[Date "2024.01.11"]
[Round "6"]
[White "Tharushi, T H D Niklesha"]
[Black "Filipovic, Slobodan J"]
[Result "1-0"]
[Board "216"]
[TimeControl "180+1"]
[WhiteFideId "9918264"]
[BlackFideId "939633"]
[WhiteElo "2257"]
[BlackElo "2385"]
[WhiteTeam "SRI"]
[BlackTeam "SRB"]
[WhiteClock "0:00:27"]
[BlackClock "0:00:18"]

1. d4 {[%clk 0:02:56]}  Nf6 {[%clk 0:00:58]} 2. Nf3 {[%clk 0:02:52]}  e6 {[%clk 0:00:58]} 3. g3 {[%clk 0:02:50]}  c5 {[%clk 0:00:59]} 4. Bg2 {[%clk 0:02:49]}  cxd4 {[%clk 0:00:58]} 5. Nxd4 {[%clk 0:02:50]}  d5 {[%clk 0:00:58]} 6. c3 {[%clk 0:02:50]}  Bc5 {[%clk 0:00:58]} 7. Nb3 {[%clk 0:02:46]}  Bb6 {[%clk 0:00:57]} 8. O-O {[%clk 0:02:46]}  O-O {[%clk 0:00:57]} 9. Bf4 {[%clk 0:02:39]}  Nc6 {[%clk 0:00:56]} 10. N1d2 {[%clk 0:02:35]}  a5 {[%clk 0:00:56]} 11. Nf3 {[%clk 0:02:33]}  a4 {[%clk 0:00:56]} 12. Nbd4 {[%clk 0:02:33]}  Ne7 {[%clk 0:00:51]} 13. Ne5 {[%clk 0:02:15]}  Nh5 {[%clk 0:00:47]} 14. Be3 {[%clk 0:02:14]}  Nf6 {[%clk 0:00:43]} 15. Qc2 {[%clk 0:02:01]}  Bd7 {[%clk 0:00:40]} 16. Rad1 {[%clk 0:01:52]}  Be8 {[%clk 0:00:35]} 17. h3 {[%clk 0:01:45]}  Nc8 {[%clk 0:00:36]} 18. g4 {[%clk 0:01:35]}  Nd6 {[%clk 0:00:36]} 19. f3 {[%clk 0:01:14]}  Rc8 {[%clk 0:00:33]} 20. Bf2 {[%clk 0:01:13]}  Nd7 {[%clk 0:00:32]} 21. Nxd7 {[%clk 0:01:00]}  Bxd7 {[%clk 0:00:33]} 22. e3 {[%clk 0:00:58]}  Nc4 {[%clk 0:00:33]} 23. b3 {[%clk 0:00:56]}  axb3 {[%clk 0:00:32]} 24. axb3 {[%clk 0:00:57]}  Nd6 {[%clk 0:00:30]} 25. e4 {[%clk 0:00:46]}  e5 {[%clk 0:00:26]} 26. Nf5 {[%clk 0:00:43]}  Bxf5 {[%clk 0:00:25]} 27. exf5 {[%clk 0:00:44]}  d4 {[%clk 0:00:25]} 28. c4 {[%clk 0:00:35]}  Bc5 {[%clk 0:00:25]} 29. f4 {[%clk 0:00:31]}  exf4 {[%clk 0:00:20]} 30. Bxd4 {[%clk 0:00:31]}  Bxd4+ {[%clk 0:00:20]} 31. Rxd4 {[%clk 0:00:32]}  Qb6 {[%clk 0:00:21]} 32. Qf2 {[%clk 0:00:29]}  Qc7 {[%clk 0:00:14]} 33. Qxf4 {[%clk 0:00:28]}  f6 {[%clk 0:00:13]} 34. Qxd6 {[%clk 0:00:28]}  Qxd6 {[%clk 0:00:13]} 35. Rxd6 {[%clk 0:00:29]}  b5 {[%clk 0:00:13]} 36. Bd5+ {[%clk 0:00:29]}  Kh8 {[%clk 0:00:13]} 37. Be6 {[%clk 0:00:29]}  Rb8 {[%clk 0:00:13]} 38. Rfd1 {[%clk 0:00:29]}  bxc4 {[%clk 0:00:13]} 39. bxc4 {[%clk 0:00:30]}  Rb2 {[%clk 0:00:13]} 40. Rd8 {[%clk 0:00:30]}  Rb8 {[%clk 0:00:11]} 41. Rxf8+ {[%clk 0:00:31]}  Rxf8 {[%clk 0:00:11]} 42. c5 {[%clk 0:00:32]}  g6 {[%clk 0:00:12]} 43. c6 {[%clk 0:00:32]}  gxf5 {[%clk 0:00:12]} 44. gxf5 {[%clk 0:00:32]}  Kg7 {[%clk 0:00:12]} 45. c7 {[%clk 0:00:33]}  Kh6 {[%clk 0:00:12]} 46. c8=Q {[%clk 0:00:32]}  Rxc8 {[%clk 0:00:12]} 47. Bxc8 {[%clk 0:00:33]}  Kg5 {[%clk 0:00:13]} 48. Rd7 {[%clk 0:00:31]}  h5 {[%clk 0:00:14]} 49. Rg7+ {[%clk 0:00:25]}  Kh4 {[%clk 0:00:13]} 50. Rh7 {[%clk 0:00:25]}  Kg5 {[%clk 0:00:13]} 51. Kf2 {[%clk 0:00:25]}  Kh4 {[%clk 0:00:13]} 52. Kf3 {[%clk 0:00:25]}  Kg5 {[%clk 0:00:13]} 53. h4+ {[%clk 0:00:24]}  Kxh4 {[%clk 0:00:14]} 54. Kf4 {[%clk 0:00:25]}  Kh3 {[%clk 0:00:13]} 55. Bb7 {[%clk 0:00:25]}  Kh2 {[%clk 0:00:12]} 56. Rxh5+ {[%clk 0:00:24]}  Kg1 {[%clk 0:00:13]} 57. Rh6 {[%clk 0:00:24]}  Kf2 {[%clk 0:00:13]} 58. Rxf6 {[%clk 0:00:25]}  Ke2 {[%clk 0:00:14]} 59. Re6+ {[%clk 0:00:26]}  Kd2 {[%clk 0:00:15]} 60. f6 {[%clk 0:00:26]}  Kc3 {[%clk 0:00:16]} 61. f7 {[%clk 0:00:26]}  Kb4 {[%clk 0:00:17]} 62. f8=Q+ {[%clk 0:00:27]}  Ka5 {[%clk 0:00:18]} 63. Qc5+ {[%clk 0:00:27]} 1-0

[Event "January 9 Early 2024"]
[Site "https://www.chess.com"]
[Date "2024.01.11"]
[Round "6"]
[White "Feliz Dotel, Dewar Bienvenido"]
[Black "Fernandez Hernandez, Gerardo"]
[Result "0-1"]
[Board "217"]
[TimeControl "180+1"]
[WhiteFideId "6402801"]
[BlackFideId "2207400"]
[WhiteElo "2147"]
[BlackElo "2314"]
[WhiteTeam "DOM"]
[BlackTeam "ESP"]
[WhiteClock "0:00:02"]
[BlackClock "0:00:14"]

1. Nf3 {[%clk 0:02:58]}  Nf6 {[%clk 0:02:59]} 2. g3 {[%clk 0:02:58]}  g6 {[%clk 0:03:00]} 3. b4 {[%clk 0:02:58]}  Bg7 {[%clk 0:03:00]} 4. Bb2 {[%clk 0:02:58]}  O-O {[%clk 0:02:59]} 5. c4 {[%clk 0:02:58]}  a5 {[%clk 0:02:58]} 6. b5 {[%clk 0:02:58]}  d6 {[%clk 0:02:57]} 7. Bg2 {[%clk 0:02:56]}  e5 {[%clk 0:02:57]} 8. d3 {[%clk 0:02:53]}  Nbd7 {[%clk 0:02:54]} 9. O-O {[%clk 0:02:53]}  Nc5 {[%clk 0:02:42]} 10. Nc3 {[%clk 0:02:46]}  a4 {[%clk 0:02:41]} 11. Ba3 {[%clk 0:02:44]}  e4 {[%clk 0:02:28]} 12. Ne1 {[%clk 0:02:21]}  exd3 {[%clk 0:02:25]} 13. Nxd3 {[%clk 0:02:19]}  Nxd3 {[%clk 0:02:12]} 14. exd3 {[%clk 0:02:17]}  Nd7 {[%clk 0:01:59]} 15. Rc1 {[%clk 0:02:14]}  Bd4 {[%clk 0:01:36]} 16. Nxa4 {[%clk 0:01:48]}  Qf6 {[%clk 0:01:35]} 17. Qc2 {[%clk 0:01:38]}  Nc5 {[%clk 0:01:19]} 18. Bxc5 {[%clk 0:01:05]}  dxc5 {[%clk 0:01:15]} 19. Nc3 {[%clk 0:01:04]}  Bxc3 {[%clk 0:01:07]} 20. Qxc3 {[%clk 0:01:04]}  Qxc3 {[%clk 0:01:08]} 21. Rxc3 {[%clk 0:01:04]}  Rxa2 {[%clk 0:01:09]} 22. Rd1 {[%clk 0:00:44]}  b6 {[%clk 0:01:01]} 23. h3 {[%clk 0:00:37]}  Rd8 {[%clk 0:00:53]} 24. Bd5 {[%clk 0:00:35]}  Bxh3 {[%clk 0:00:47]} 25. d4 {[%clk 0:00:34]}  cxd4 {[%clk 0:00:42]} 26. Rxd4 {[%clk 0:00:33]}  Be6 {[%clk 0:00:42]} 27. Rcd3 {[%clk 0:00:29]}  Bxd5 {[%clk 0:00:35]} 28. Rxd5 {[%clk 0:00:29]}  Rxd5 {[%clk 0:00:32]} 29. Rxd5 {[%clk 0:00:27]}  Rc2 {[%clk 0:00:32]} 30. Rd4 {[%clk 0:00:25]}  Kf8 {[%clk 0:00:31]} 31. Kg2 {[%clk 0:00:22]}  Ke7 {[%clk 0:00:31]} 32. Kf3 {[%clk 0:00:22]}  Ke6 {[%clk 0:00:30]} 33. Ke3 {[%clk 0:00:21]}  h5 {[%clk 0:00:21]} 34. f3 {[%clk 0:00:10]}  Rc3+ {[%clk 0:00:20]} 35. Kf4 {[%clk 0:00:08]}  f6 {[%clk 0:00:17]} 36. Re4+ {[%clk 0:00:07]}  Kd6 {[%clk 0:00:17]} 37. Rd4+ {[%clk 0:00:07]}  Ke6 {[%clk 0:00:16]} 38. Re4+ {[%clk 0:00:08]}  Kd6 {[%clk 0:00:17]} 39. Rd4+ {[%clk 0:00:08]}  Kc5 {[%clk 0:00:18]} 40. Rd7 {[%clk 0:00:08]}  Rxc4+ {[%clk 0:00:17]} 41. Ke3 {[%clk 0:00:07]}  Kxb5 {[%clk 0:00:18]} 42. Rg7 {[%clk 0:00:06]}  g5 {[%clk 0:00:17]} 43. Rh7 {[%clk 0:00:06]}  h4 {[%clk 0:00:17]} 44. gxh4 {[%clk 0:00:07]}  Rxh4 {[%clk 0:00:18]} 45. Rf7 {[%clk 0:00:06]}  Rf4 {[%clk 0:00:17]} 46. Rf8 {[%clk 0:00:03]}  c5 {[%clk 0:00:16]} 47. Ra8 {[%clk 0:00:03]}  Kb4 {[%clk 0:00:16]} 48. Ra1 {[%clk 0:00:02]}  c4 {[%clk 0:00:14]} 49. Rb1+ {[%clk 0:00:02]}  Kc5 {[%clk 0:00:14]} 0-1

[Event "January 9 Early 2024"]
[Site "https://www.chess.com"]
[Date "2024.01.11"]
[Round "6"]
[White "Rustemov, Alexander"]
[Black "Van Foreest, Jorden"]
[Result "0-1"]
[Board "219"]
[TimeControl "180+1"]
[WhiteFideId "4119002"]
[BlackFideId "1039784"]
[WhiteElo "2807"]
[BlackElo "3019"]
[WhiteTeam "RUS"]
[BlackTeam "NED"]
[WhiteClock "0:00:02"]
[BlackClock "0:00:59"]

1. d4 {[%clk 0:03:00]}  d5 {[%clk 0:02:59]} 2. c4 {[%clk 0:03:01]}  e6 {[%clk 0:03:00]} 3. Nc3 {[%clk 0:03:01]}  a6 {[%clk 0:03:00]} 4. cxd5 {[%clk 0:03:00]}  exd5 {[%clk 0:03:00]} 5. Nf3 {[%clk 0:03:01]}  h6 {[%clk 0:02:59]} 6. Bf4 {[%clk 0:03:00]}  c6 {[%clk 0:03:00]} 7. e3 {[%clk 0:02:57]}  Bd6 {[%clk 0:03:00]} 8. Bxd6 {[%clk 0:02:54]}  Qxd6 {[%clk 0:03:01]} 9. Bd3 {[%clk 0:02:52]}  Ne7 {[%clk 0:03:01]} 10. Qc2 {[%clk 0:02:51]}  Nd7 {[%clk 0:03:01]} 11. O-O {[%clk 0:02:47]}  Nf6 {[%clk 0:02:54]} 12. Na4 {[%clk 0:02:45]}  O-O {[%clk 0:02:47]} 13. Rfc1 {[%clk 0:02:44]}  g6 {[%clk 0:02:45]} 14. Nc5 {[%clk 0:02:38]}  Rb8 {[%clk 0:02:42]} 15. b4 {[%clk 0:02:25]}  Bf5 {[%clk 0:02:34]} 16. a4 {[%clk 0:02:23]}  Rfc8 {[%clk 0:02:32]} 17. Ne5 {[%clk 0:02:16]}  h5 {[%clk 0:02:25]} 18. h3 {[%clk 0:02:14]}  Kg7 {[%clk 0:02:25]} 19. Rab1 {[%clk 0:02:13]}  Rc7 {[%clk 0:02:19]} 20. Rb3 {[%clk 0:02:01]}  Rbc8 {[%clk 0:02:12]} 21. Rc3 {[%clk 0:02:00]}  Bxd3 {[%clk 0:01:53]} 22. Ncxd3 {[%clk 0:01:55]}  Ne4 {[%clk 0:01:51]} 23. Rb3 {[%clk 0:01:53]}  f6 {[%clk 0:01:51]} 24. Nf3 {[%clk 0:01:52]}  Qd8 {[%clk 0:01:45]} 25. Nc5 {[%clk 0:01:51]}  Nxc5 {[%clk 0:01:41]} 26. bxc5 {[%clk 0:01:49]}  Rd7 {[%clk 0:01:39]} 27. Rcb1 {[%clk 0:01:49]}  Rcc7 {[%clk 0:01:39]} 28. R1b2 {[%clk 0:01:38]}  Nf5 {[%clk 0:01:39]} 29. Qb1 {[%clk 0:01:38]}  Qc8 {[%clk 0:01:39]} 30. a5 {[%clk 0:01:37]}  Re7 {[%clk 0:01:40]} 31. g3 {[%clk 0:01:32]}  Rcd7 {[%clk 0:01:29]} 32. Kg2 {[%clk 0:01:33]}  Qc7 {[%clk 0:01:28]} 33. h4 {[%clk 0:01:32]}  Kh6 {[%clk 0:01:24]} 34. Qe1 {[%clk 0:01:22]}  Qd8 {[%clk 0:01:20]} 35. Qd2 {[%clk 0:01:20]}  Kh7 {[%clk 0:01:18]} 36. Ne1 {[%clk 0:01:12]}  Qe8 {[%clk 0:01:16]} 37. Nf3 {[%clk 0:01:12]}  Qf7 {[%clk 0:01:17]} 38. Qd3 {[%clk 0:01:10]}  Qe6 {[%clk 0:01:17]} 39. Qb1 {[%clk 0:01:01]}  Qf7 {[%clk 0:01:18]} 40. Qd3 {[%clk 0:01:00]}  Kg7 {[%clk 0:01:18]} 41. Qb1 {[%clk 0:01:00]}  Rc7 {[%clk 0:01:16]} 42. Qd3 {[%clk 0:01:00]}  Red7 {[%clk 0:01:16]} 43. Qb1 {[%clk 0:01:00]}  Qe7 {[%clk 0:01:13]} 44. Qd3 {[%clk 0:01:00]}  Qf7 {[%clk 0:01:13]} 45. Qb1 {[%clk 0:01:00]}  Kh7 {[%clk 0:01:14]} 46. Qd3 {[%clk 0:01:00]}  Ne7 {[%clk 0:01:14]} 47. Qb1 {[%clk 0:00:59]}  Nc8 {[%clk 0:01:15]} 48. Ne1 {[%clk 0:00:45]}  Na7 {[%clk 0:01:13]} 49. Nd3 {[%clk 0:00:46]}  Nb5 {[%clk 0:01:14]} 50. Nf4 {[%clk 0:00:46]}  Kg7 {[%clk 0:01:14]} 51. Qd3 {[%clk 0:00:43]}  Re7 {[%clk 0:01:14]} 52. Re2 {[%clk 0:00:43]}  Re4 {[%clk 0:01:15]} 53. Rb1 {[%clk 0:00:41]}  g5 {[%clk 0:01:12]} 54. hxg5 {[%clk 0:00:39]}  fxg5 {[%clk 0:01:12]} 55. Nh3 {[%clk 0:00:40]}  Qg6 {[%clk 0:01:10]} 56. f3 {[%clk 0:00:38]}  Re6 {[%clk 0:01:10]} 57. Qxg6+ {[%clk 0:00:36]}  Kxg6 {[%clk 0:01:11]} 58. Rb3 {[%clk 0:00:34]}  Nxd4 {[%clk 0:01:10]} 59. Reb2 {[%clk 0:00:24]}  Nxb3 {[%clk 0:01:09]} 60. Rxb3 {[%clk 0:00:24]}  Rce7 {[%clk 0:01:07]} 61. Kf2 {[%clk 0:00:24]}  d4 {[%clk 0:01:07]} 62. e4 {[%clk 0:00:24]}  Re5 {[%clk 0:01:08]} 63. Rb4 {[%clk 0:00:07]}  Rd7 {[%clk 0:01:08]} 64. Rc4 {[%clk 0:00:07]}  d3 {[%clk 0:01:04]} 65. Ke1 {[%clk 0:00:07]}  d2+ {[%clk 0:01:05]} 66. Kd1 {[%clk 0:00:08]}  Rd3 {[%clk 0:01:05]} 67. Ng1 {[%clk 0:00:06]}  g4 {[%clk 0:01:05]} 68. f4 {[%clk 0:00:06]}  Re8 {[%clk 0:00:58]} 69. Ne2 {[%clk 0:00:07]}  h4 {[%clk 0:00:59]} 70. gxh4 {[%clk 0:00:04]}  g3 {[%clk 0:00:59]} 71. Rd4 {[%clk 0:00:01]}  Rxd4 {[%clk 0:00:59]} 72. Nxd4 {[%clk 0:00:02]}  Rxe4 {[%clk 0:00:59]} 0-1

[Event "January 9 Early 2024"]
[Site "https://www.chess.com"]
[Date "2024.01.11"]
[Round "6"]
[White "Drozdowski, Kacper"]
[Black "Haug, Havard"]
[Result "0-1"]
[Board "220"]
[TimeControl "180+1"]
[WhiteFideId "1136720"]
[BlackFideId "1547887"]
[WhiteElo "2966"]
[BlackElo "2791"]
[WhiteTeam "POL"]
[BlackTeam "NOR"]
[WhiteClock "0:00:07"]
[BlackClock "0:00:04"]

1. e4 {[%clk 0:03:00]}  c6 {[%clk 0:02:59]} 2. d4 {[%clk 0:03:01]}  d5 {[%clk 0:02:57]} 3. e5 {[%clk 0:03:00]}  c5 {[%clk 0:02:57]} 4. dxc5 {[%clk 0:02:58]}  e6 {[%clk 0:02:56]} 5. Be3 {[%clk 0:02:58]}  Nd7 {[%clk 0:02:55]} 6. Nf3 {[%clk 0:02:58]}  Bxc5 {[%clk 0:02:54]} 7. Bxc5 {[%clk 0:02:57]}  Nxc5 {[%clk 0:02:55]} 8. Nc3 {[%clk 0:02:53]}  a6 {[%clk 0:02:52]} 9. Bd3 {[%clk 0:02:50]}  Ne7 {[%clk 0:02:51]} 10. O-O {[%clk 0:02:50]}  Ng6 {[%clk 0:02:51]} 11. Re1 {[%clk 0:02:46]}  Qc7 {[%clk 0:02:49]} 12. Qd2 {[%clk 0:02:38]}  O-O {[%clk 0:02:45]} 13. h4 {[%clk 0:02:34]}  Nd7 {[%clk 0:02:26]} 14. Qe3 {[%clk 0:01:54]}  Qc5 {[%clk 0:02:15]} 15. Qg5 {[%clk 0:01:43]}  Ndxe5 {[%clk 0:01:49]} 16. Rxe5 {[%clk 0:00:32]}  f6 {[%clk 0:01:46]} 17. Qh5 {[%clk 0:00:22]}  fxe5 {[%clk 0:01:44]} 18. Bxg6 {[%clk 0:00:20]}  hxg6 {[%clk 0:01:42]} 19. Qxe5 {[%clk 0:00:18]}  Rf5 {[%clk 0:01:36]} 20. Qe3 {[%clk 0:00:18]}  Qxe3 {[%clk 0:01:35]} 21. fxe3 {[%clk 0:00:19]}  Bd7 {[%clk 0:01:35]} 22. Ne2 {[%clk 0:00:18]}  Be8 {[%clk 0:00:36]} 23. Nf4 {[%clk 0:00:17]}  Bf7 {[%clk 0:00:31]} 24. g4 {[%clk 0:00:16]}  Rf6 {[%clk 0:00:31]} 25. Ne5 {[%clk 0:00:14]}  Rc8 {[%clk 0:00:28]} 26. c3 {[%clk 0:00:14]}  Be8 {[%clk 0:00:28]} 27. Rd1 {[%clk 0:00:12]}  Kf8 {[%clk 0:00:28]} 28. Kf2 {[%clk 0:00:12]}  Ke7 {[%clk 0:00:27]} 29. Kg3 {[%clk 0:00:12]}  Kd6 {[%clk 0:00:26]} 30. Nf3 {[%clk 0:00:11]}  Bc6 {[%clk 0:00:24]} 31. Nd3 {[%clk 0:00:09]}  Rcf8 {[%clk 0:00:22]} 32. Nfe5 {[%clk 0:00:09]}  Bb5 {[%clk 0:00:20]} 33. g5 {[%clk 0:00:10]}  Rf5 {[%clk 0:00:17]} 34. Nxg6 {[%clk 0:00:10]}  Rf1 {[%clk 0:00:12]} 35. Rd2 {[%clk 0:00:11]}  R8f3+ {[%clk 0:00:11]} 36. Kg2 {[%clk 0:00:11]}  Bxd3 {[%clk 0:00:11]} 37. Rxd3 {[%clk 0:00:11]}  R1f2+ {[%clk 0:00:12]} 38. Kg1 {[%clk 0:00:11]}  Rxb2 {[%clk 0:00:13]} 39. Nf4 {[%clk 0:00:10]}  Rxa2 {[%clk 0:00:11]} 40. c4 {[%clk 0:00:11]}  Ke5 {[%clk 0:00:10]} 41. cxd5 {[%clk 0:00:11]}  exd5 {[%clk 0:00:10]} 42. Rxd5+ {[%clk 0:00:10]}  Ke4 {[%clk 0:00:10]} 43. Rd7 {[%clk 0:00:10]}  Kxe3 {[%clk 0:00:10]} 44. Nh5 {[%clk 0:00:09]}  Ra1+ {[%clk 0:00:05]} 45. Kg2 {[%clk 0:00:09]}  Ra2+ {[%clk 0:00:06]} 46. Kg1 {[%clk 0:00:09]}  Rh3 {[%clk 0:00:03]} 47. Rxg7 {[%clk 0:00:07]}  Rxh4 {[%clk 0:00:02]} 48. Nf6 {[%clk 0:00:07]}  Rc4 {[%clk 0:00:01]} 49. Re7+ {[%clk 0:00:07]}  Kf3 {[%clk 0:00:01]} 50. Re1 {[%clk 0:00:07]}  Rcc2 {[%clk 0:00:02]} 51. Nd5 {[%clk 0:00:05]}  Rg2+ {[%clk 0:00:02]} 52. Kh1 {[%clk 0:00:06]}  Rh2+ {[%clk 0:00:03]} 53. Kg1 {[%clk 0:00:06]}  Rag2+ {[%clk 0:00:03]} 54. Kf1 {[%clk 0:00:07]}  Rh1# {[%clk 0:00:04]} 0-1

[Event "January 9 Early 2024"]
[Site "https://www.chess.com"]
[Date "2024.01.11"]
[Round "6"]
[White "Zou, Chen"]
[Black "Zavgorodniy, Sergiy"]
[Result "1-0"]
[Board "223"]
[TimeControl "180+1"]
[WhiteFideId "8610959"]
[BlackFideId "14110148"]
[WhiteElo "2803"]
[BlackElo "2622"]
[WhiteTeam "CHN"]
[BlackTeam "UKR"]
[WhiteClock "0:00:13"]
[BlackClock "0:00:06"]

1. e4 {[%clk 0:02:56]}  e5 {[%clk 0:02:59]} 2. Nf3 {[%clk 0:02:56]}  d6 {[%clk 0:03:00]} 3. Bc4 {[%clk 0:02:56]}  Be7 {[%clk 0:02:59]} 4. d4 {[%clk 0:02:56]}  exd4 {[%clk 0:02:59]} 5. Nxd4 {[%clk 0:02:54]}  Nf6 {[%clk 0:03:00]} 6. Nc3 {[%clk 0:02:52]}  O-O {[%clk 0:03:00]} 7. O-O {[%clk 0:02:50]}  c6 {[%clk 0:03:01]} 8. Bb3 {[%clk 0:02:45]}  b5 {[%clk 0:03:01]} 9. a3 {[%clk 0:02:43]}  a6 {[%clk 0:03:00]} 10. Re1 {[%clk 0:02:42]}  c5 {[%clk 0:03:00]} 11. Nde2 {[%clk 0:02:30]}  c4 {[%clk 0:02:58]} 12. Ba2 {[%clk 0:02:30]}  Bb7 {[%clk 0:02:46]} 13. Ng3 {[%clk 0:02:30]}  d5 {[%clk 0:02:41]} 14. exd5 {[%clk 0:02:22]}  Bc5 {[%clk 0:02:08]} 15. Bg5 {[%clk 0:02:18]}  Nbd7 {[%clk 0:02:08]} 16. Nce4 {[%clk 0:02:15]}  Qb6 {[%clk 0:02:05]} 17. Nxc5 {[%clk 0:02:03]}  Qxc5 {[%clk 0:02:06]} 18. Nf5 {[%clk 0:01:42]}  Rfe8 {[%clk 0:01:58]} 19. Qf3 {[%clk 0:01:17]}  Bxd5 {[%clk 0:01:48]} 20. Qg3 {[%clk 0:01:16]}  g6 {[%clk 0:01:25]} 21. Nh6+ {[%clk 0:01:08]}  Kg7 {[%clk 0:01:24]} 22. Be3 {[%clk 0:00:58]}  Qc6 {[%clk 0:01:15]} 23. Nf5+ {[%clk 0:00:56]}  Kg8 {[%clk 0:01:15]} 24. Nd4 {[%clk 0:00:56]}  Qb7 {[%clk 0:01:12]} 25. Rad1 {[%clk 0:00:56]}  Nh5 {[%clk 0:01:10]} 26. Qh3 {[%clk 0:00:50]}  Ndf6 {[%clk 0:01:10]} 27. Bb1 {[%clk 0:00:49]}  Be4 {[%clk 0:01:00]} 28. c3 {[%clk 0:00:49]}  Bxb1 {[%clk 0:00:57]} 29. Rxb1 {[%clk 0:00:50]}  Re4 {[%clk 0:00:57]} 30. Qf3 {[%clk 0:00:49]}  Rae8 {[%clk 0:00:56]} 31. h3 {[%clk 0:00:48]}  Nd5 {[%clk 0:00:47]} 32. Bd2 {[%clk 0:00:41]}  Rxe1+ {[%clk 0:00:44]} 33. Rxe1 {[%clk 0:00:42]}  Rxe1+ {[%clk 0:00:44]} 34. Bxe1 {[%clk 0:00:42]}  Qd7 {[%clk 0:00:44]} 35. Bd2 {[%clk 0:00:42]}  Ng7 {[%clk 0:00:40]} 36. Bh6 {[%clk 0:00:40]}  Ne6 {[%clk 0:00:39]} 37. Qg3 {[%clk 0:00:33]}  Nec7 {[%clk 0:00:30]} 38. Qf3 {[%clk 0:00:27]}  f6 {[%clk 0:00:30]} 39. Qe2 {[%clk 0:00:24]}  Kf7 {[%clk 0:00:30]} 40. h4 {[%clk 0:00:22]}  Qe7 {[%clk 0:00:27]} 41. Qf3 {[%clk 0:00:22]}  Qe1+ {[%clk 0:00:26]} 42. Kh2 {[%clk 0:00:22]}  Qe5+ {[%clk 0:00:26]} 43. g3 {[%clk 0:00:23]}  Ne6 {[%clk 0:00:19]} 44. Nc6 {[%clk 0:00:19]}  Qd6 {[%clk 0:00:18]} 45. Na5 {[%clk 0:00:19]}  Nc5 {[%clk 0:00:14]} 46. Qg4 {[%clk 0:00:13]}  Qe6 {[%clk 0:00:13]} 47. Qd4 {[%clk 0:00:12]}  Nd3 {[%clk 0:00:10]} 48. Nb7 {[%clk 0:00:12]}  g5 {[%clk 0:00:07]} 49. Nd8+ {[%clk 0:00:12]}  Ke7 {[%clk 0:00:06]} 50. Nxe6 {[%clk 0:00:13]} 1-0